Cogmind - Beta 15 @@@ ROGUE MODE // 2025.09.04 @ 14:50:43 Player: nameimpending Result: Destroyed by S-10 Pest with Light Assault Rifle Performance ------------- Evolutions (0) 0 Regions Visited (2) 400 Robots Destroyed (11) 55 Value Destroyed (85) 85 Prototype IDs (0) 0 Alien Tech Used (0) 0 Bonus (0) 0 TOTAL SCORE: 540 Bonus ------- None Cogmind --------- Core Integrity 0/250 Matter 289/300 Energy 250/250 System Corruption 0% Temperature Cool (0) Movement Treading (160) Location -10/Subcaves Parts ------- > --- POWER (1) -------- Ion Engine > --- PROPULSION (2) --- Light Treads Light Treads > --- UTILITY (2) ------ Small Storage Unit Improved Terrain Scanner > --- WEAPON (2) ------- Medium Laser Light Assault Rifle > --- INVENTORY (8) ---- Compact Wheel Compact Wheel Peak State ------------ > --- POWER ------------ Ion Engine > --- PROPULSION ------- Light Treads Light Treads > --- UTILITY ---------- Small Storage Unit Improved Terrain Scanner > --- WEAPON ----------- Medium Laser Light Assault Rifle > --- INVENTORY -------- Ion Engine Compact Wheel Compact Wheel [Rating: 9] Favorites ----------- Power Ion Engine Engine Ion Engine Propulsion Light Treads Treads Light Treads Utility Small Storage Unit Device Improved Terrain Scanner Storage Small Storage Unit Weapon Light Assault Rifle Energy Gun Medium Laser Ballistic Gun Light Assault Rifle Build | -11 -10 -10 ------- Run | Yrd Mat Sub Slots Evolved . | . . . Power . | . . . Propulsion . | . . . Utility . | . . . Weapon . | . . . Parts Attached 8 | 7 1 . Power 2 | 1 1 . Engine 2 | 1 1 . Core . | . . . Reactor . | . . . Propulsion 2 | 2 . . Treads 2 | 2 . . Leg . | . . . Wheel . | . . . Hover . | . . . Flight . | . . . Utility 2 | 2 . . Device 1 | 1 . . Storage 1 | 1 . . Processor . | . . . Hackware . | . . . Protection . | . . . Artifact . | . . . Weapon 2 | 2 . . Energy Gun 1 | 1 . . Energy Cannon . | . . . Ballistic Gun 1 | 1 . . Ballistic Cannon . | . . . Launcher . | . . . Special Weapon . | . . . Impact Weapon . | . . . Slashing Weapon . | . . . Piercing Weapon . | . . . Special Melee Weapon . | . . . Unidentified Prototypes . | . . . Parts Lost 1 | . 1 . Power 1 | . 1 . Propulsion . | . . . Utility . | . . . Weapon . | . . . Highest Loss Streak 1 | . 1 . To Critical Strikes . | . . . Average Backups 2 | 2 3 2 Power . | . 1 . Propulsion 1 | 1 2 2 Utility . | . . . Weapon . | . . . Tool/Special . | . . . Unused Backups 3 | 1 . 2 Power . | . . . Propulsion 3 | 1 . 2 Utility . | . . . Weapon . | . . . Tool/Special . | . . . Average Slot Usage (%) 98 | . 97 100 Engine 12 | . 11 14 Treads 28 | . 28 28 Device 14 | . 14 14 Storage 14 | . 14 14 Energy Gun 14 | . 14 14 Ballistic Gun 14 | . 14 14 Peak Build Rating 9 | 9 9 9 Average Rating 7 | 5 8 9 On Entrance 6 | . 9 9 Naked Turns . | . . . Heaviest Build 14 | 14 14 14 Greatest Support 40 | 40 40 40 Greatest Overweight (x) . | . . . Average Overweight (x) . | . . . Largest Inventory Capacity 8 | 8 8 8 Average Capacity 7 | 7 8 8 Most Carried 4 | 4 3 2 Average Carried 2 | 2 2 2 Final Capacity 8 | 8 8 8 Final Carried 3 | 3 2 2 Class Distribution -------------------- 100% | Mutant Dominant Class ---------------- Mutant | -10/Materials Mutant | -10/Subcaves Resources | -11 -10 -10 ----------- Run | Yrd Mat Sub Matter Collected 315 | 312 3 . Remotely . | . . . Salvage Created 267 | 217 50 . Parts 22 | 16 6 . Haulers Intercepted . | . . . Recyclers Shooed . | . . . Parts Field Recycled . | . . . Retrieved Matter . | . . . Parts Self-Destructed . | . . . Prevented . | . . . Kills | -11 -10 -10 ------- Run | Yrd Mat Sub Combat Hostiles Destroyed 3 | . 3 . Guns 3 | . 3 . Classes Destroyed 3 | 2 1 . Tunneler 7 | 7 . . Recycler 1 | 1 . . Swarmer 3 | . 3 . Best Kill Streak 3 | 3 2 . Combat Bots Only 2 | . 2 . Max Kills in Single Turn 1 | 1 1 . Gunslinging . | . . . Exploded . | . . . Melee . | . . . Uniques/NPCs Destroyed . | . . . Combat | -11 -10 -10 -------- Run | Yrd Mat Sub Hostile Shots Fired 27 | . 12 15 Missed 6 | . 2 4 Hits 21 | . 10 11 Projectile 21 | . 10 11 Critical Strikes 1 | . . 1 Damage Taken 415 | . 327 88 Core 252 | . 215 37 Absorbed by Shields . | . . . Core Remaining (%) 100 | 100 . . Volleys Fired 41 | 32 8 1 Largest 2 | 2 2 2 Hottest 70 | 70 70 70 Shots Fired 81 | 63 16 2 Gun 81 | 63 16 2 Cannon . | . . . Launcher . | . . . Special . | . . . Kinetic 41 | 32 8 1 Thermal 40 | 31 8 1 Explosive . | . . . Electromagnetic . | . . . Robot Hit Streak 8 | 8 7 . Robot Miss Streak 3 | 3 3 2 Penetration Max . | . . . Secondary Targets . | . . . Shots Hit Robots 46 | 37 9 . Core Hits 17 | 12 5 . Critical Kills . | . . . Critical Parts Destroyed . | . . . Critical Strikes 2 | 2 . . Burn 2 | 2 . . Melee Attacks . | . . . Impact . | . . . Slashing . | . . . Piercing . | . . . Sneak Attacks . | . . . Combat Hostiles . | . . . Follow-up Attacks . | . . . Damage Inflicted 474 | 384 90 . Guns 470 | 384 86 . Cannons . | . . . Explosions . | . . . Melee . | . . . Ramming 4 | . 4 . Kinetic 170 | 134 36 . Thermal 300 | 250 50 . Explosive . | . . . Electromagnetic . | . . . Impact . | . . . Slashing . | . . . Piercing . | . . . Highest Corruption . | . . . Average Corruption . | . . . Corruption Purged . | . . . Corruption Blocked . | . . . Overload Shots . | . . . Overflow Damage . | . . . Projectiles . | . . . Explosions . | . . . Melee . | . . . Knockbacks . | . . . Impact . | . . . Kinetic . | . . . Secondary . | . . . Self-Inflicted Damage . | . . . Shots . | . . . Rammed 1 | . 1 . Targets Rammed 1 | . 1 . Kicked . | . . . Crushed . | . . . Highest Temperature 114 | 114 101 . Average Temperature 41 | 42 35 . Received Heat Transfer . | . . . Siege Activations . | . . . Martial Activations . | . . . Shielding Activations . | . . . Robots Disrupted . | . . . Combat Hostiles . | . . . Robots Corrupted . | . . . Combat Hostiles . | . . . Parts Fried . | . . . Impact Corruptions . | . . . Robots Melted . | . . . Combat Hostiles . | . . . Parts Melted 2 | 2 . . Heat Transferred 1036 | 888 148 . Parts Sabotaged . | . . . Parts Stolen . | . . . Parts Stripped . | . . . Power Chain Reactions . | . . . Alert | -11 -10 -10 ------- Run | Yrd Mat Sub Maximum Alert Level . | . . . Low Security (%) 100 | 100 100 . Level 1 . | . . . Level 2 . | . . . Level 3 . | . . . Level 4 . | . . . Level 5 . | . . . High Security . | . . . Max Security . | . . . Peak Influence 50 | 10 50 . Initial . | . . . Average 6 | 1 14 . Influence Increases 140 | 40 100 . Destroy 0b10 Robot/C 60 | . 60 . Destroy 0b10 Robot/NC 40 | 40 . . Destroy Leader 10 | . 10 . Lose Combat Pursuer 30 | . 30 . Influence Decreases 140 | 40 90 10 Entered New Map 6 | . . 6 Time Decay 124 | 40 80 4 Lost Part 10 | . 10 . Squads Dispatched 1 | . 1 . Investigation . | . . . Extermination . | . . . Reinforcement 1 | . 1 . Assault . | . . . Garrison . | . . . Intercept . | . . . Searches Triggered . | . . . Construction Impeded . | . . . Haulers Reinforced . | . . . Active Scanning Responses . | . . . Cargo Convoy Interrupts . | . . . Stealth | -11 -10 -10 --------- Run | Yrd Mat Sub Distress Signals 1 | . 1 . Communications Jammed . | . . . Distress Signals . | . . . Times Spotted 9 | . 7 2 Peak Tracking Total 6 | . 6 2 Tactical Retreats 1 | . 1 . Traps | -11 -10 -10 ------- Run | Yrd Mat Sub Traps Triggered . | . . . Indirectly . | . . . Trap Hack Attempts . | . . . Triggered . | . . . Disarmed . | . . . Reprogrammed . | . . . Reused . | . . . Traps Extracted . | . . . Installed . | . . . Triggered . | . . . Machines | -11 -10 -10 ---------- Run | Yrd Mat Sub Machines Disabled . | . . . Max in Single Turn . | . . . Machines Repaired . | . . . Machines Dismantled . | . . . Machines Sabotaged . | . . . Overloaded Fab Kills . | . . . Hacking | -11 -10 -10 --------- Run | Yrd Mat Sub Machines Accessed . | . . . Terminals . | . . . Fabricators . | . . . Repair Stations . | . . . Recycling Units . | . . . Scanalyzers . | . . . Garrison Access . | . . . Total Hacks . | . . . Successful . | . . . Failed . | . . . Catastrophic . | . . . Database Lockouts . | . . . Manual . | . . . Terminals . | . . . Fabricators . | . . . Repair Stations . | . . . Recycling Units . | . . . Scanalyzers . | . . . Garrison Access . | . . . Terminal Hacks . | . . . Fabricator Hacks . | . . . Repair Station Hacks . | . . . Recycling Unit Hacks . | . . . Scanalyzer . | . . . Garrison Access Hacks . | . . . Unauthorized Hacks . | . . . Terminals . | . . . Fabricators . | . . . Repair Stations . | . . . Recycling Units . | . . . Scanalyzers . | . . . Garrison Access . | . . . Data Cores Recovered . | . . . Used . | . . . Hacking Detections . | . . . Full Trace Events . | . . . Feedback Events . | . . . Feedback Blocked . | . . . Robot Schematics Acquired . | . . . Robots Built . | . . . Authchips . | . . . Time . | . . . Total Robot Build Rating . | . . . Part Schematics Acquired . | . . . Parts Built . | . . . Authchips . | . . . Time . | . . . Total Part Build Rating . | . . . Parts Repaired . | . . . Time . | . . . Parts Recycled . | . . . Recycled Matter . | . . . Retrieved Matter . | . . . Retrieved Components . | . . . Parts Scanalyzed . | . . . Part Schematics Acquired . | . . . Parts Damaged . | . . . Bothacking | -11 -10 -10 ------------ Run | Yrd Mat Sub Used RIF Installer . | . . . Robots Hacked . | . . . Non-combat . | . . . Combat . | . . . Robot Hacks Applied . | . . . Relay Couplers Released . | . . . Fabnet Peak Effective % . | . . . Robots Rewired . | . . . Allies Hacked . | . . . Hacks Repelled . | . . . Allies | -11 -10 -10 -------- Run | Yrd Mat Sub Total Allies . | . . . Largest Group . | . . . Highest-Rated Group . | . . . Highest-Rated Ally . | . . . Total Orders . | . . . Ally Attacks . | . . . Total Damage . | . . . Kills . | . . . Allies Corrupted . | . . . Allies Melted . | . . . Intel | -11 -10 -10 ------- Run | Yrd Mat Sub Active Infowar (turns) 500 | 35 242 223 Terrain 500 | 35 242 223 Robot Analysis Total . | . . . Derelict Logs Recovered . | . . . Drone Launches . | . . . Drone Recoveries . | . . . Exploration | -11 -10 -10 ------------- Run | Yrd Mat Sub Turns Passed 822 | 357 242 223 Spaces Moved 434 | 161 135 138 Core 5 | 5 . . Treads 429 | 156 135 138 Legs . | . . . Wheels . | . . . Hover . | . . . Flight . | . . . Fastest Speed 50 | 50 160 160 Average Speed 158 | 156 160 160 Slowest Speed 160 | 160 160 160 Overloaded Moves . | . . . Propulsion Burnouts . | . . . Robots Hopped . | . . . Potential Cave-ins . | . . . Cave-ins Triggered . | . . . Exploration Rate (%) 13 | 8 20 11 Regions Visited 2 Branch Regions 1 Pre-discovered Areas . | . . . Known Exits Taken . | . . . Unknown Exits Taken 2 | 1 1 . Scrap Searched . | . . . Spaces Dug . | . . . Terrain Destroyed . | . . . Melee . | . . . Projectile . | . . . AOE . | . . . Terrain Rammed . | . . . Walls Destroyed . | . . . Machines Disabled . | . . . Actions | -11 -10 -10 --------- Run | Yrd Mat Sub Total 492 | 207 146 139 Wait 3 | 1 2 . Move 432 | 160 134 138 Hop . | . . . Pick Up 4 | 4 . . Fast Attach 7 | 7 . . Attach 2 | 1 1 . Detach 1 | 1 . . Swap . | . . . Drop 1 | 1 . . Fire 41 | 32 8 1 Melee . | . . . Ram . | . . . Kick . | . . . Crush 1 | . 1 . Escape Stasis . | . . . Rewire . | . . . Trap . | . . . Miscellaneous . | . . . Route ------- -11/Scrapyard -10/Materials -10/Subcaves (discovered 1 exit: [*Mat]) History --------- Turn | Location | Event 36 | -11/Scrapyard | Discovered new exit (range 15) 358 | -11/Scrapyard | Entered Materials 359 | -10/Materials | Build established: Mutant 469 | -10/Materials | Discovered new exit (range 6) 552 | -10/Materials | Core integrity fell below 50% 552 | -10/Materials | Core integrity fell below 20% 600 | -10/Materials | Entered Subcaves 601 | -10/Subcaves | Approached by a straggling Scientist 664 | -10/Subcaves | Discovered new exit (range 5) 686 | -10/Subcaves | Shifting Twisted Machinery released Sub. Beam Cannon 790 | -10/Subcaves | Shifting Twisted Machinery released Sub. Machine Gun 823 | -10/Subcaves | Destroyed by S-10 Pest with Light Assault Rifle Last Messages --------------- GOAL=ESCAPE 00601_ ID-OY8(c): "Thank the algorithms! I was beginning to lose hope I'd never make it past all the Subs lurking out here." 00604_ ID-OY8(c): "Hey, let me tag along and I can get us both out of this nasty situation. At least I think I can... The group I got separated from was talking about a shortcut back to the UFD." ID-OY8(c): "I think it's somewhere east of here" 00664_ EXIT=FOUND Sub. Beam Cannon falls loose from the Twisted Machinery. ID-OY8(c): "I think it's somewhere east of here" Sub. Machine Gun falls loose from the Twisted Machinery. ID-OY8(c): "I think it's somewhere east of here" 00804_ Subatomizers dissect the Lgt. Ion Engine. 00818_ Q2-IBR(R): "MADSUB!" Map ----- +----------------------------------------------------+ | ?????????????????????????#???????????????????????? | | ?????????????????????????????????????????????????? | | ?????????????????????????????????????????????????? | | ?????????????????????????????????????????????????? | | ?????????????????????????????????????????????????? | | ?????????????????????????#????????#??????????????? | | ????????#?????????#???????#????#??????#??#???????? | | ???????????????????????#?????????????????????????? | | ???????????? ##??????????###?????????????????????? | | ??????????? #????????#??????#??????????????????? | | ??????????# #??#?##?##???????????#?????#???????? | | ????????## ???#??????##??????###??????????????? | | ##?#????# ?????????########## #######????????? | | ######## ???????????# # ##""""####?????? | | ## ?# ?? ?????????# """ #?????? | | # ### ??????#?###?### ## """ #?????? | | ## #?????##### ### # ## ##"" #????? | | #????## ## # ##???????????? | | ##???# ##????????????? | | "##??# ""# #### # ##????????????# | | ""##?## ""###?########?????????????? | | """#?### ""##???#???????????????????? | | ""##???# R "" ##????#??????????????#??? | | "##???## ## " ####???????????? ??????? | | #??#### ""## ]""" #??????#??"?????????? | | # ####"" ""######@ #?###??#????? ??????? | | ######## ## """#???##" s### ##??????????????? | | ????#??# < #??##"" ##??#??? ? ????? | | ??????# #### ##??#" #?????? ??????? | | ???#??##???########???#[ s ????????? | | ??????????????????????## ### & ???? | | ??????????????#????????####?# ??? | | ??????????????????????#??#?# ?? | | ???#?????????????????#?????# "*%| ??? | | ???????????????#???????????# ## ###### ??? | | ?????????#?????????????????# ## #?????? ?? | | ?#???????????????????????#?## ## ##?????? #??? | | ?????????????#??????#???????### #?#???????#??? | | ???????????????#??????????????? #????????????? | | ??????????????????????????????? ##????????????? | | ??????????????#?????????????#? %###?????????????? | | ????????#??????????????#?????? *????????????????? | | ?????????????????????????????? ????????????????? | | ??????????????????????????????? ????????????????? | | ?????????????????????????????????????????????????? | | ?????????????????????????????????????????????????? | | ?????????????????????????????????????????????????? | | ?????????????????????????????????????????????????? | | ?????????????????????????????????????????????????? | | ?????????????????????????????????????????????????? | +----------------------------------------------------+ Best States ------------- Heat Dissipation 25 Energy Generation 10 Energy Capacity 250 Matter Stores 300 Matter Capacity 300 Sight Range 16 Terrain Scan Range 16 Terrain Scan Density 10 Evasion (%) 40 Recoil Reduction 2 Item Schematics ----------------- None Robot Schematics ------------------ None Fabricated ------------ Nothing Repaired ---------- Nothing Alien Tech Used ----------------- None Achievements -------------- None Challenges ------------ None Game ------ Seed SalvagingCannonModule Manual? 0 Play Time 00:05:47 Cumulative 56.5 hours Start 2025.09.04 @ 14:45:07 End 2025.09.04 @ 14:50:43 Sessions 1 Manual Loads 0 Difficulty Rogue Special Mode None Game No. 59 Rogue 55 Adventurer 4 Explorer 0 Win Type - Total 1 Types 1/0/0/0/0/0/0/0/0/0 Lore% 20 Gallery% 41 Achievement% 36 Wizard Run 0 Options --------- Layout 1 ASCII 0 Keyboard 1 Movement Numpad Keybinds 0 Fullscreen 1 Font 24/Smallcaps Map View 50x35 Zoom Use 0% Tactical HUD 1 Map Filters NONE Filters NONE Steam 1 RUN: 52520322-1e1a-4400-ada8-d24888cfcfe1